Cogmind - Beta 9.4 @@@ ROGUE MODE // 2020.02.23 @ 22:39:42 // Winter2019/RPGLIKE Player: PlasticHeart Result: Destroyed by G-47 Trooper with Particle Gun Performance ------------- Evolutions (2) 1000 Regions Visited (5) 1000 Robots Destroyed (39) 195 Value Destroyed (855) 855 Prototype IDs (24) 480 Alien Tech Used (0) 0 Bonus (300) 300 TOTAL SCORE: 3830 Bonus ------- Aligned with FarCom 300 Cogmind --------- Core Integrity 0/600 Matter 187/300 Energy 142/160 System Corruption 0% Temperature Cool (9) Movement Walking (120) Location -8/Materials Parts ------- > --- POWER (1) -------- Light Nuclear Core > --- PROPULSION (2) --- Aluminum Leg Carbon-fiber Leg > --- UTILITY (4) ------ Improved Heat Sink Improved Heat Sink Advanced Signal Interpreter Particle Charger > --- WEAPON (2) ------- Electrolaser Assault Cannon > --- INVENTORY (2) ---- PSU Rigger Scythe Peak State ------------ > --- POWER ------------ Light Nuclear Core > --- PROPULSION ------- Aluminum Leg Carbon-fiber Leg > --- UTILITY ---------- Improved Heat Sink Improved Heat Sink Advanced Signal Interpreter Particle Charger > --- WEAPON ----------- Electrolaser Assault Cannon > --- INVENTORY -------- PSU Rigger Scythe [Rating: 26] Favorites ----------- Power Ion Engine Engine Ion Engine Power Core Light Nuclear Core Propulsion Improved Hover Unit Leg Aluminum Leg Wheel Wheel Hover Unit Improved Hover Unit Utility Salvage Targeting Computer Device Improved Heat Sink Processor Salvage Targeting Computer Weapon EM Pulse Gun Energy Gun EM Pulse Gun Ballistic Gun Autogun Ballistic Cannon Improved Light Cannon Slashing Weapon Scythe Build | -11 -10 -10 -10 -9 -8 ------- Run | Scr Mat Min Exi Min Mat Slots Evolved 5 | 2 . . . . 3 Power . | . . . . . . Propulsion 1 | 1 . . . . . Utility 3 | 1 . . . . 2 Weapon 1 | . . . . . 1 Parts Attached 25 | 5 5 1 . 2 12 Power 3 | 1 . . . . 2 Engine 1 | 1 . . . . . Core 2 | . . . . . 2 Reactor . | . . . . . . Propulsion 7 | 2 2 . . . 3 Treads . | . . . . . . Leg 3 | . . . . . 3 Wheel 2 | 2 . . . . . Hover 2 | . 2 . . . . Flight . | . . . . . . Utility 7 | . 3 . . . 4 Device 3 | . . . . . 3 Storage . | . . . . . . Processor 4 | . 3 . . . 1 Hackware . | . . . . . . Protection . | . . . . . . Artifact . | . . . . . . Weapon 8 | 2 . 1 . 2 3 Energy Gun 3 | 2 . . . . 1 Energy Cannon . | . . . . . . Ballistic Gun 1 | . . . . . 1 Ballistic Cannon 3 | . . 1 . 1 1 Launcher . | . . . . . . Special Weapon . | . . . . . . Impact Weapon . | . . . . . . Slashing Weapon 1 | . . . . 1 . Piercing Weapon . | . . . . . . Special Melee Weapon . | . . . . . . Unidentified Prototypes . | . . . . . . Parts Lost 2 | . . . . . 2 Power . | . . . . . . Propulsion 2 | . . . . . 2 Utility . | . . . . . . Weapon . | . . . . . . Highest Loss Streak 2 | . . . . . 2 Average Slot Usage (%) 96 | . 98 100 100 100 92 Engine 10 | . 16 16 16 16 2 Core 4 | . . . . . 9 Leg 5 | . . . . . 13 Hover 23 | . 33 33 33 33 11 Device 5 | . . . . . 13 Processor 28 | . 31 33 33 33 22 Energy Gun 7 | . 16 12 . . 6 Ballistic Gun 2 | . . . . . 6 Ballistic Cannon 6 | . . 3 16 15 6 Naked Turns . | . . . . . . Heaviest Build 18 | 7 7 9 9 9 18 Greatest Support 36 | 36 36 26 26 26 35 Greatest Overweight (x) . | . . . . . . Average Overweight (x) . | . . . . . . Largest Inventory Capacity 2 | 2 2 2 2 2 2 Average Capacity 2 | 2 2 2 2 2 2 Most Carried 2 | 2 2 2 2 2 2 Average Carried 1 | 1 1 2 2 2 2 Final Capacity 2 | 2 2 2 2 2 2 Final Carried 2 | 2 2 2 2 2 2 Class Distribution -------------------- 89% | Mutant 10% | Scavenger-Mutant Dominant Class ---------------- Mutant | -10/Materials Mutant | -10/Mines Mutant | -10/Exiles Mutant | -9/Mines Mutant | -8/Materials Resources | -11 -10 -10 -10 -9 -8 ----------- Run | Scr Mat Min Exi Min Mat Matter Collected 916 | 204 96 . . 79 537 Remotely . | . . . . . . Salvage Created 955 | . 282 . . 35 638 Parts 55 | . 16 . . . 39 Haulers Intercepted 2 | . 2 . . . . Recyclers Shooed . | . . . . . . Parts Field Recycled . | . . . . . . Retrieved Matter . | . . . . . . Parts Self-Destructed . | . . . . . . Prevented . | . . . . . . Kills | -11 -10 -10 -10 -9 -8 ------- Run | Scr Mat Min Exi Min Mat Combat Hostiles Destroyed 31 | . 5 . . 8 18 Guns 17 | . 5 . . . 12 Cannons 14 | . . . . 8 6 Classes Destroyed 11 | . 4 1 . 1 5 Worker 1 | . . . . . 1 Builder 1 | . . . . . 1 Tunneler 1 | . . 1 . . . Hauler 2 | . 2 . . . . Recycler 2 | . . . . . 2 Watcher 1 | . 1 . . . . Swarmer 7 | . 3 . . . 4 Grunt 14 | . 2 . . . 12 Duelist 1 | . . . . . 1 Sentry 1 | . . . . . 1 Assembled 8 | . . . . 8 . Best Kill Streak 6 | . 5 1 . 6 4 Combat Bots Only 6 | . 5 . . 6 3 Max Kills in Single Turn 1 | . 1 1 . 1 1 Gunslinging . | . . . . . . Exploded . | . . . . . . Melee . | . . . . . . Uniques/NPCs Destroyed . | . . . . . . Combat | -11 -10 -10 -10 -9 -8 -------- Run | Scr Mat Min Exi Min Mat Damage Taken 1735 | . 220 . . 131 1384 Core 1449 | . 183 . . 116 1150 Absorbed by Shields . | . . . . . . Redirected to Core 985 | . 126 . . 51 808 Core Remaining (%) 88 | 100 . . . 77 . Volleys Fired 167 | . 29 4 . 21 113 Largest 2 | . 1 1 . 1 2 Hottest 107 | . 40 39 . 39 107 Shots Fired 197 | . 29 4 . 21 143 Gun 127 | . 29 . . . 98 Cannon 70 | . . 4 . 21 45 Launcher . | . . . . . . Special . | . . . . . . Kinetic 138 | . . 4 . 21 113 Thermal 30 | . . . . . 30 Explosive . | . . . . . . Electromagnetic 29 | . 29 . . . . Robot Hit Streak 23 | . 4 4 . 4 23 Robot Miss Streak 3 | . 3 1 . 2 3 Penetration Max . | . . . . . . Secondary Targets . | . . . . . . Shots Hit Robots 135 | . 15 3 . 15 102 Core Hits 63 | . 11 1 . 9 42 Critical Hits . | . . . . . . Critical Kills . | . . . . . . Critical Parts Destroyed . | . . . . . . Melee Attacks 2 | . . . . 2 . Impact . | . . . . . . Slashing 2 | . . . . 2 . Piercing . | . . . . . . Sneak Attacks . | . . . . . . Combat Hostiles . | . . . . . . Follow-up Attacks . | . . . . . . Damage Inflicted 2618 | . 262 70 . 322 1964 Guns 1542 | . 262 . . . 1280 Cannons 1076 | . . 70 . 322 684 Explosions . | . . . . . . Melee . | . . . . . . Ramming . | . . . . . . Kinetic 1993 | . . 70 . 322 1601 Thermal 363 | . . . . . 363 Explosive . | . . . . . . Electromagnetic 262 | . 262 . . . . Impact . | . . . . . . Slashing . | . . . . . . Piercing . | . . . . . . Highest Corruption . | . . . . . . Average Corruption . | . . . . . . Corruption Purged . | . . . . . . Overload Shots . | . . . . . . Overflow Damage 21 | . . 16 . . 5 Projectiles 21 | . . 16 . . 5 Explosions . | . . . . . . Melee . | . . . . . . Knockbacks 10 | . . 1 . 4 5 Impact . | . . . . . . Kinetic 10 | . . 1 . 4 5 Secondary . | . . . . . . Self-Inflicted Damage . | . . . . . . Shots . | . . . . . . Rammed . | . . . . . . Targets Rammed . | . . . . . . Kicked . | . . . . . . Crushed . | . . . . . . Highest Temperature 198 | . 99 6 . 60 198 Average Temperature 35 | . 27 3 . 15 45 Received Heat Transfer 775 | . 105 . . 40 630 Siege Activations . | . . . . . . Robots Corrupted . | . . . . . . Combat Hostiles . | . . . . . . Parts Fried 3 | . 3 . . . . Impact Corruptions . | . . . . . . Robots Melted . | . . . . . . Combat Hostiles . | . . . . . . Parts Melted . | . . . . . . Heat Transferred 703 | . . . . . 703 Parts Sabotaged . | . . . . . . Parts Stolen . | . . . . . . Parts Stripped . | . . . . . . Power Chain Reactions . | . . . . . . Missiles Intercepted . | . . . . . . Alert | -11 -10 -10 -10 -9 -8 ------- Run | Scr Mat Min Exi Min Mat Peak Influence 230 | . 191 79 . 15 230 Average Influence 89 | . 103 71 . 3 124 Maximum Alert Level 1 | . . . . . 1 Low Security (%) 89 | 100 100 100 . 100 77 Level 1 10 | . . . . . 22 Level 2 . | . . . . . . Level 3 . | . . . . . . Level 4 . | . . . . . . Level 5 . | . . . . . . High Security . | . . . . . . Max Security . | . . . . . . Squads Dispatched 3 | . . . . . 3 Investigation 1 | . . . . . 1 Extermination . | . . . . . . Reinforcement 2 | . . . . . 2 Assault . | . . . . . . Garrison . | . . . . . . Intercept . | . . . . . . Construction Impeded 2 | . . . . . 2 Haulers Reinforced . | . . . . . . Stealth | -11 -10 -10 -10 -9 -8 --------- Run | Scr Mat Min Exi Min Mat Distress Signals 1 | . 1 . . . . Communications Jammed . | . . . . . . Distress Signals . | . . . . . . Times Spotted 39 | . 9 . . 8 22 Peak Tracking Total 5 | . 5 . . 2 4 Tactical Retreats 3 | . 1 . . . 2 Traps | -11 -10 -10 -10 -9 -8 ------- Run | Scr Mat Min Exi Min Mat Traps Triggered . | . . . . . . Indirectly . | . . . . . . Trap Hack Attempts . | . . . . . . Triggered . | . . . . . . Disarmed . | . . . . . . Reprogrammed . | . . . . . . Reused . | . . . . . . Traps Extracted . | . . . . . . Installed . | . . . . . . Triggered 2 | . . . . 2 . Machines | -11 -10 -10 -10 -9 -8 ---------- Run | Scr Mat Min Exi Min Mat Machines Disabled . | . . . . . . Max in Single Turn . | . . . . . . Machines Sabotaged . | . . . . . . Garrisons Compromised . | . . . . . . Overloaded Fab Kills . | . . . . . . Fab Network Shutdowns . | . . . . . . Hacking | -11 -10 -10 -10 -9 -8 --------- Run | Scr Mat Min Exi Min Mat Machines Accessed 10 | . 4 1 1 1 3 Terminals 8 | . 4 . . 1 3 Fabricators . | . . . . . . Repair Stations . | . . . . . . Recycling Units . | . . . . . . Scanalyzers . | . . . . . . Garrison Access . | . . . . . . Total Hacks 19 | . 6 1 1 3 8 Successful 15 | . 5 1 1 2 6 Failed 4 | . 1 . . 1 2 Catastrophic . | . . . . . . Database Lockouts . | . . . . . . Manual 7 | . 2 . 1 . 4 Terminals 17 | . 6 . . 3 8 Fabricators . | . . . . . . Repair Stations . | . . . . . . Recycling Units . | . . . . . . Scanalyzers . | . . . . . . Garrison Access . | . . . . . . Terminal Hacks 9 | . 3 1 1 2 2 Prototype ID Bank 1 | . 1 . . . . Open Door 1 | . . 1 . . . Level Access Points 1 | . . . . 1 . Terminal Index 1 | . . . . . 1 Alert Level 1 | . . . . . 1 Locate Traps 1 | . 1 . . . . Zone Layout 2 | . 1 . . 1 . EX-Prototype ID Bank 1 | . . . 1 . . Fabricator Hacks . | . . . . . . Repair Station Hacks . | . . . . . . Recycling Unit Hacks . | . . . . . . Scanalyzer . | . . . . . . Garrison Access Hacks . | . . . . . . Unauthorized Hacks 12 | . 4 . . . 8 Terminals 6 | . 2 . . . 4 Track 3 | . 2 . . . 1 Assimilate 1 | . . . . . 1 Botnet 1 | . . . . . 1 Disrupt 1 | . . . . . 1 Fabricators . | . . . . . . Repair Stations . | . . . . . . Recycling Units . | . . . . . . Scanalyzers . | . . . . . . Garrison Access . | . . . . . . Data Cores Recovered . | . . . . . . Used . | . . . . . . Hacking Detections 4 | . 1 . . 1 2 Full Trace Events . | . . . . . . Feedback Events . | . . . . . . Feedback Blocked . | . . . . . . Robot Schematics Acquired . | . . . . . . Robots Built . | . . . . . . Matter . | . . . . . . Time . | . . . . . . Total Robot Build Rating . | . . . . . . Part Schematics Acquired . | . . . . . . Parts Built . | . . . . . . Matter . | . . . . . . Time . | . . . . . . Total Part Build Rating . | . . . . . . Parts Repaired . | . . . . . . Time . | . . . . . . Parts Recycled . | . . . . . . Recycled Matter . | . . . . . . Retrieved Matter . | . . . . . . Retrieved Components . | . . . . . . Parts Scanalyzed . | . . . . . . Part Schematics Acquired . | . . . . . . Parts Damaged . | . . . . . . Bothacking | -11 -10 -10 -10 -9 -8 ------------ Run | Scr Mat Min Exi Min Mat Used RIF Installer . | . . . . . . Robots Hacked . | . . . . . . Non-combat . | . . . . . . Combat . | . . . . . . Robot Hacks Applied . | . . . . . . Relay Couplers Released . | . . . . . . Robots Rewired . | . . . . . . Allies Hacked . | . . . . . . Hacks Repelled . | . . . . . . Allies | -11 -10 -10 -10 -9 -8 -------- Run | Scr Mat Min Exi Min Mat Total Allies 4 | . . 2 . 1 1 Largest Group 2 | . . 2 . 1 1 Highest-Rated Group 51 | . . 51 . 31 10 Highest-Rated Ally 31 | . . 31 . 31 10 Total Orders . | . . . . . . Ally Attacks . | . . . . . . Total Damage . | . . . . . . Kills . | . . . . . . Allies Corrupted . | . . . . . . Allies Melted . | . . . . . . Intel | -11 -10 -10 -10 -9 -8 ------- Run | Scr Mat Min Exi Min Mat Robot Analysis Total . | . . . . . . Derelict Logs Recovered 1 | . . 1 . . . Drone Launches . | . . . . . . Drone Recoveries . | . . . . . . Exploration | -11 -10 -10 -10 -9 -8 ------------- Run | Scr Mat Min Exi Min Mat Turns Passed 1968 | 40 295 413 131 261 828 Spaces Moved 1976 | 36 374 650 232 180 504 Core 10 | 7 . . . . 3 Treads . | . . . . . . Legs 298 | . . . . . 298 Wheels 33 | 29 4 . . . . Hover 1635 | . 370 650 232 180 203 Flight . | . . . . . . Fastest Speed 50 | 50 56 56 56 56 50 Average Speed 66 | 82 56 56 56 56 93 Slowest Speed 120 | 90 90 56 56 56 120 Overloaded Moves . | . . . . . . Propulsion Burnouts . | . . . . . . Robots Hopped . | . . . . . . Cave-ins Triggered . | . . . . . . Exploration Rate (%) 49 | 3 70 97 61 42 26 Regions Visited 5 Branch Regions 3 Pre-discovered Areas . | . . . . . . Known Exits Taken 4 | . 1 1 1 1 . Unknown Exits Taken 1 | 1 . . . . . Scrap Searched 3 | . . 3 . . . Spaces Dug 2 | . . . . 2 . Terrain Destroyed 12 | . . 1 . 4 7 Melee 2 | . . . . 2 . Projectile 10 | . . 1 . 2 7 AOE . | . . . . . . Actions | -11 -10 -10 -10 -9 -8 --------- Run | Scr Mat Min Exi Min Mat Total 2443 | 44 428 694 233 314 730 Wait 214 | . 8 38 . 106 62 Move 1971 | 35 373 649 231 179 504 Hop . | . . . . . . Pick Up 8 | 4 2 1 1 . . Fast Attach 16 | 2 5 . . . 9 Attach 2 | 2 . . . . . Detach . | . . . . . . Swap 7 | 1 . 1 . 2 3 Drop 13 | . 5 1 1 . 6 Fire 167 | . 29 4 . 21 113 Melee 2 | . . . . 2 . Ram . | . . . . . . Kick . | . . . . . . Crush . | . . . . . . Escape Stasis . | . . . . . . Rewire . | . . . . . . Trap . | . . . . . . Miscellaneous 43 | . 6 . . 4 33 Route ------- -11/Scrapyard -10/Materials (discovered 2 exits: [*Mat] / *Min) -10/Mines (discovered 2 exits: [*Mat] / *Exi) -10/Exiles -9/Mines (discovered 2 exits: *Mat x2) -8/Materials (discovered 1 exit: Fac) History --------- Turn | Location | Event 1 | -11/Scrapyard | Upgraded with Propulsion slot (x1) 1 | -11/Scrapyard | Upgraded with Utility slot (x1) 6 | -11/Scrapyard | Discovered new exit (range 16) 41 | -11/Scrapyard | Entered Materials 99 | -10/Materials | Discovered new exit (range 16) 102 | -10/Materials | Met 8R-AWN 285 | -10/Materials | Discovered new exit (range 4) 309 | -10/Materials | Build established: Mutant 334 | -10/Materials | Identified exit to Mines 336 | -10/Materials | Entered Mines 337 | -10/Mines | Followed 8R-AWN into the Mines 378 | -10/Mines | Discovered new exit (range 5) 541 | -10/Mines | Learned location of 1 exit from Materials 638 | -10/Mines | Discovered new exit (range 5) 645 | -10/Mines | Met a Derelict who couldn't figure out how to use a Trap Extractor 748 | -10/Mines | Identified exit to Exiles 749 | -10/Mines | Entered Exiles 763 | -10/Exiles | Welcomed by 8R-AWN 772 | -10/Exiles | Met EX-HEX 789 | -10/Exiles | Met EX-BIN 798 | -10/Exiles | Reached level 2 798 | -10/Exiles | Aligned with FarCom system 798 | -10/Exiles | Given EX-Vault access code 812 | -10/Exiles | Opened EX-Vault 823 | -10/Exiles | Found PSU Rigger 836 | -10/Exiles | Warned to stay clear of 0b10 Research branches 851 | -10/Exiles | Met EX-DEC 875 | -10/Exiles | Discovered new exit (range 10) 880 | -10/Exiles | Identified exit to Mines 880 | -10/Exiles | Left Exiles lab with PSU Rigger 880 | -10/Exiles | Entered Mines 881 | -9/Mines | Assembled infested the area 882 | -9/Mines | Met a Derelict bent on vengeance 1109 | -9/Mines | Identified exit to Materials 1126 | -9/Mines | Received a Mining Laser from a helpful Derelict 1141 | -9/Mines | Entered Materials 1142 | -8/Materials | Identified exit to Factory 1143 | -8/Materials | Reached level 3 1244 | -8/Materials | Core integrity fell below 50% 1390 | -8/Materials | Upgraded with Utility slot (x2) 1390 | -8/Materials | Upgraded with Weapon slot (x1) 1440 | -8/Materials | Core integrity fell below 20% 1450 | -8/Materials | Reached level 4 1969 | -8/Materials | Destroyed by G-47 Trooper with Particle Gun Last Messages --------------- 01905_ K-01 Serf collects debris. 01906_ Used Protomatter to restore core integrity (+6, depleted) 01907_ U-05 Engineer knocked back. 01908_ ALERT: Construction progress impeded, dispatching reinforcements to local area. 01908_ K-01 Serf collects debris. 01912_ U-05 Engineer builds a Door. 01913_ K-01 Serf collects debris. 01913_ Used Protomatter to restore core integrity (+-12, depleted) 01918_ K-01 Serf collects debris. 01919_ K-01 Serf cleans the Terminal. 01937_ Acquired 12 matter. 01948_ G-47 Trooper knocked back. 01951_ G-47 Trooper destroyed. 01957_ Destroyed Wheel. 01960_ G-47 Trooper knocked back. 01963_ G-47 Trooper destroyed. 01964_ U-05 Engineer builds a Wall. 01966_ U-05 Engineer destroyed. 01967_ R-06 Scavenger collects Wheel. Map ----- +----------------------------------------------------+ | ##??????????????????????????????????# ####+###???? | | ??????#####??????????????????????# ##?# #?????? | | ?????# #?????????#######??????# #?##+####### | | """ # #????????? #??????# #?# # | | """"" # #????????? #??????#*#?# # | | """"" #" #??????#""" ######## ### [ # | | """"" #T #??????#""" # # = # [ # | | """ #" #??????#""" # + [+ # | | ?? ??# ########""" # """ # # # | | ####+######+### #""" # """ +% # # | | # # """ # # # | | = [ r T # k [# #= # = # | | / ####/############ ########## | | ####+######+### k % #????????? | | ! # ?## ! r * #????????? | | = !# ??# [ %= #????????? | | # #?#""" """ ###/######+############? | | """ """ # #?#"R """ # *= # ! #? | | """ """ # #?#""" """ # # """ #? | | """ """ # #?# u # # """ #? | | """ """ # #?# a # "" # "T" """ #? | | #####?###"Y"## # ! """ # #? | | ?#####??##???????#"""## # S" ##############? | | ?????????????????###### # """ #?????????????? | | ??????????????????????# # """ #?????????????? | | ??????????????????????# =@# #?????????????? | | ??????????????????????# !%##########?????????????? | | ??????????????????????# !#??????????????????????? | | ??????????????????????# #??????????????????????? | | ??????????????????????# = #??????????????????????? | | ??????????????????????#* [#??????????????????????? | | ??????????????????????#m #??????????????????????? | | ??????????????????????# g%#??????????????????????? | | ??????????????????????# =%#??????????????????????? | | ??????????????????????# ??????????????????????? | | ??????????????????????+ ??????????????????????? | | ??????????????????????# ?????????????????????? | | ??????????????????????###;##?????????????????????? | | ?????????????????????????#???????????????????????? | | ?????????????????????????????????????????????????? | | ?????????????Y???????????????????????????????????? | | ?????????????????????????????????????????????????? | | ?????????????????????????????????????????????????? | | | | | | | | | | | | | | | +----------------------------------------------------+ Best States ------------- Heat Dissipation 53 Energy Generation 14 Energy Capacity 250 Matter Stores 300 Matter Capacity 300 Sight Range 16 Terrain Scan Density 10 Evasion (%) 53 Particle Charging 15 Salvage Targeting 2 Offensive Hacking 10 Item Schematics ----------------- None Robot Schematics ------------------ None Fabricated ------------ Nothing Alien Tech Used ----------------- None Achievements -------------- None Challenges ------------ None RPGLIKE | -11 -10 -10 -10 -9 -8 --------- Run | Scr Mat Min Exi Min Mat Levels Raised 3 | . . . 1 . 2 XP Earned 8655 | 3000 705 500 350 500 3600 XP Spent 5850 | 2450 400 . . . 3000 Upgrades 12 | 6 1 . . . 5 Propulsion Slot 1 | 1 . . . . . Utility Slot 3 | 1 . . . . 2 Weapon Slot 1 | . . . . . 1 Mass Support 2 | 2 . . . . . Inventory Capacity 2 | 2 . . . . . Ranged Accuracy 1 | . 1 . . . . Hack Attack % 2 | . . . . . 2 Protomatter Created 355 | . 31 . . 14 310 Integrity Restored 840 | . 120 . . 42 678 Core 840 | . 120 . . 42 678 Protomatter Decayed 71 | . . . . 21 50 Game ------ Seed RocketImprovedNanovents Manual? 0 Play Time 00:26:51 Cumulative 663.0 hours Start 2020.02.23 @ 22:14:33 End 2020.02.23 @ 22:39:42 Sessions 1 Manual Loads 0 Difficulty Rogue Special Mode Winter2019/RPGLIKE Game No. 366 Rogue 366 Adventurer 0 Explorer 0 Win Type - Total 52 Types 29/2/12/5/1/1/2 Lore% 90 Gallery% 86 Achievement% 71 Wizard Run 0 Options --------- ASCII 0 Keyboard 0 Movement Mouse Keybinds 0 Fullscreen 0 Font 32/SmallcapsGlow Map View 76x50 Tactical HUD 1 Map Filters NONE Filters NONE Steam 0 RUN: 96232b4e-1bcb-4a44-9d01-56eb0580c632